bitfinex-derivatives/quotes_SOLF0:USTF0_20250312
["timestamp","ask_amount","ask_price","bid_price","bid_amount"]
[1741768877583,3.9864,124.92,124.85,27.00990642]
[1741768877778,3.9864,124.92,124.86,45.68]
[1741768877974,30.99630642,124.92,124.83,45.68]
[1741768878380,8.0088,124.89,124.85,8.0107]
[1741768878578,8.07011064,124.89,124.86,0.0516546]
[1741768878779,8.0092,124.88,124.86,0.0516546]
[1741768878980,0.06131064,124.89,124.86,0.0516546]
[1741768879383,4.17451064,124.89,124.8,286.14]
[1741768879583,4.1132,124.89,124.8,286.14]
[1741768880575,8.06772729,124.86,124.83,0.05933581]
[1741768880783,0.05702729,124.86,124.83,0.05933581]
[1741768881679,8.0116,124.84,124.83,0.05933581]
[1741768882179,4.28852729,124.86,124.83,0.05933581]
[1741768882886,8.0116,124.84,124.83,0.05933581]
[1741768885687,8.0116,124.84,124.76,4.2161]
[1741768885688,2.4,124.84,124.75,27.00990642]
[1741768885885,4.175,124.83,124.75,27.00990642]
[1741768886083,4.2315,124.86,124.75,27.00990642]
[1741768886284,4.2315,124.86,124.82,8.0129]
[1741768886483,4.2315,124.86,124.8,72.64990642]
[1741768886885,0.05936528,124.84,124.82,0.0602446]
[1741768887995,8.07136528,124.84,124.82,0.0602446]
[1741768888386,0.05936528,124.84,124.76,4.0235]
[1741768888588,8.0132,124.82,124.77,8.0157]
[1741768889092,8.0132,124.82,124.78,8.0154]
[1741768889596,0.0603534,124.81,124.79,0.05939482]
[1741768889788,0.0603534,124.81,124.79,8.07419482]
[1741768890486,0.0603534,124.81,124.8,8.0142]
[1741768891891,0.0603534,124.81,124.79,8.07419482]
[1741768892190,0.0603534,124.81,124.79,0.05939482]
[1741768892795,0.0603534,124.81,124.8,8.0142]
[1741768894197,0.0603534,124.81,124.79,8.07389482]
[1741768894393,0.0603534,124.81,124.79,0.05939482]
[1741768894791,0.0603534,124.81,124.8,8.0142]
[1741768895297,8.1758,124.87,124.8,72.60990642]
[1741768895505,4.175,124.87,124.8,72.60990642]
[1741768895693,8.2575,124.91,124.8,72.60990642]
[1741768895998,8.0083,124.9,124.87,8.0094]
[1741768896692,8.0087,124.89,124.87,0.05083265]
[1741768897294,0.05760862,124.9,124.87,0.05083265]
[1741768897898,8.06560862,124.9,124.87,0.05083265]
[1741768898097,8.06560862,124.9,124.87,8.06003265]
[1741768898490,0.05760862,124.9,124.87,0.05083265]
[1741768898693,0.05760862,124.9,124.89,8.0084]
[1741768898998,0.05760862,124.9,124.87,0.05083265]
[1741768899694,8.06560862,124.9,124.87,8.06023265]
[1741768899999,0.05760862,124.9,124.87,0.05083265]
[1741768900301,8.0091,124.88,124.87,0.05083265]
[1741768902793,8.0107,124.86,124.83,8.012]
[1741768903402,8.01,124.87,124.84,8.0113]
[1741768903700,27.00990642,124.9,124.82,45.56]
[1741768904098,0.05494015,124.87,124.85,0.05755236]
[1741768904602,0.05494015,124.87,124.79,53.5548]
[1741768904807,1.39431456,124.88,124.79,72.54990642]
[1741768905097,20.6235,124.91,124.86,8.01]
[1741768905301,27.00990642,124.94,124.84,45.54]
[1741768905601,8.2578,124.95,124.85,27.00990642]
[1741768905805,0.05697707,124.9,124.88,0.0525675]
[1741768906005,8.0065,124.92,124.88,0.0525675]
[1741768906197,0.05635594,124.9,124.88,0.0525675]
[1741768907505,0.05635594,124.9,124.89,8.0084]
[1741768907901,8.2578,124.95,124.88,45.5725675]
[1741768908100,8.2578,124.95,124.91,8.0067]
[1741768908702,8.2578,124.95,124.9,8.0076]
[1741768909101,0.05448713,124.94,124.91,0.05453038]
[1741768909907,8.05968713,124.94,124.91,8.06173038]
[1741768910098,0.05448713,124.94,124.91,8.06173038]
[1741768910303,0.05448713,124.94,124.91,0.05453038]
[1741768910513,0.05448713,124.94,124.93,8.0059]
[1741768910709,0.05448713,124.94,124.91,0.05453038]
[1741768910911,0.05448713,124.94,124.92,8.0061]
[1741768915106,8.0062,124.93,124.91,0.05453038]
[1741768916007,0.05448713,124.94,124.91,0.05453038]
[1741768916509,8.06008713,124.94,124.91,8.06133038]
[1741768917110,0.05448713,124.94,124.92,8.0062]
[1741768918212,0.05448713,124.94,124.91,0.05453038]
[1741768918213,0.05448713,124.94,124.93,8.0059]
[1741768918413,0.05448713,124.94,124.91,16.87471281]
[1741768918817,8.06008713,124.94,124.92,8.0062]
[1741768919916,8.06008713,124.94,124.91,8.06133038]
[1741768920211,0.05448713,124.94,124.92,8.0062]
[1741768920714,0.05448713,124.94,124.91,8.06133038]
[1741768920906,8.06008713,124.94,124.91,0.05453038]
[1741768921316,0.05448713,124.94,124.91,8.06133038]
[1741768921512,8.006,124.93,124.91,8.06133038]
[1741768921714,0.05448713,124.94,124.91,0.05453038]
[1741768921909,8.06008713,124.94,124.91,0.05453038]
[1741768922110,0.05448713,124.94,124.91,0.05453038]
[1741768923017,0.05448713,124.94,124.91,16.87471281]
[1741768923317,0.05448713,124.94,124.92,45.42]
[1741768923818,0.00832001,124.94,124.93,8.0059]
[1741768924015,0.00832001,124.94,124.92,45.42]
[1741768924317,8.01412001,124.94,124.92,45.42]
[1741768924907,0.00832001,124.94,124.91,0.05453038]
[1741768925613,8.0059,124.93,124.91,0.05453038]
[1741768925814,0.00832001,124.94,124.91,0.05453038]
[1741768926218,24.82668243,124.92,124.91,0.05453038]
[1741768926412,16.82018243,124.92,124.85,45.4]
[1741768926815,8.0084,124.9,124.86,8.01]
[1741768927016,16.82018243,124.92,124.86,8.01]
[1741768927217,16.82018243,124.9,124.83,45.38]
[1741768927418,8.0102,124.87,124.83,45.38]
[1741768927614,0.05435823,124.88,124.85,0.05966675]
[1741768928114,8.0101,124.87,124.85,0.05966675]
[1741768928918,8.0104,124.86,124.85,0.05966675]
[1741768930217,8.0104,124.86,124.76,240.22]
[1741768930218,33.64036486,124.86,124.75,16.82018243]
[1741768930423,8.0156,124.78,124.74,32.2789714]
[1741768930724,16.82018243,124.8,124.74,32.2789714]
[1741768930919,8.0159,124.78,124.74,32.2789714]
[1741768931123,16.82018243,124.8,124.74,32.2789714]
[1741768931329,0.05124495,124.77,124.75,0.05885528]
[1741768931825,24.83698243,124.76,124.75,0.05885528]
[1741768932022,16.82018243,124.76,124.69,20.82228243]
[1741768932217,45.43124495,124.77,124.69,30.9937699]
[1741768932516,45.43124495,124.77,124.73,8.0182]
[1741768932517,45.38,124.77,124.73,8.0182]
[1741768932724,4.0857,124.78,124.69,30.9937699]
[1741768933224,0.06124652,124.75,124.72,0.0519299]
[1741768933416,4.0857,124.82,124.78,8.0153]
[1741768933617,4.0857,124.82,124.75,26.9916699]
[1741768934225,49.4205,124.84,124.75,26.9916699]
[1741768934418,49.4205,124.84,124.77,26.9916699]
[1741768934419,4.0605,124.84,124.77,26.9916699]
[1741768934618,0.05235967,124.81,124.78,0.06028363]
[1741768937727,26.9916699,124.88,124.79,45.36]
[1741768938328,180.9317,124.87,124.79,45.36]
[1741768938522,45.36,124.86,124.76,72.3516699]
[1741768939029,0.05410358,124.82,124.8,0.0566553]
[1741768941429,8.06710358,124.82,124.8,0.0566553]
[1741768941736,0.05410358,124.82,124.8,0.0566553]
[1741768942039,8.0155,124.78,124.74,8.0178]
[1741768942336,8.0155,124.78,124.72,285.68]
[1741768942633,8.0163,124.77,124.73,8.0183]
[1741768942831,26.9916699,124.8,124.69,35.6065699]
[1741768943028,26.9916699,124.78,124.69,4.3542]
[1741768943235,27.04888918,124.76,124.67,49.3118]
[1741768943629,8.0176,124.75,124.71,8.0199]
[1741768943935,8.2871,124.77,124.67,76.3034699]
[1741768944134,16.3036,124.77,124.67,76.3034699]
[1741768944330,8.2871,124.77,124.67,76.3034699]
[1741768944531,0.05945243,124.73,124.71,0.05685579]
[1741768944830,0.05945243,124.73,124.72,8.019]
[1741768945333,0.05945243,124.73,124.71,0.05685579]
[1741768947035,0.05945243,124.73,124.72,8.0194]
[1741768949433,45.32,124.81,124.71,72.36852569]
[1741768949739,45.32,124.81,124.72,4.0773]
[1741768950039,45.32,124.81,124.76,8.0164]
[1741768950240,8.0168,124.76,124.72,4.0773]
[1741768950641,0.0604351,124.75,124.73,8.07613127]
[1741768951142,0.0604351,124.75,124.74,8.0181]
[1741768954243,49.5859,124.83,124.75,8.0173]
[1741768954439,49.5859,124.83,124.72,31.0689699]
[1741768955143,8.0144,124.8,124.76,8.0167]
[1741768955443,0.05123105,124.79,124.77,0.05647731]
[1741768955639,0.05123105,124.79,124.78,8.0155]
[1741768956240,0.05123105,124.79,124.77,8.07217731]
[1741768956643,0.05123105,124.79,124.77,0.05647731]
[1741768956844,0.05123105,124.79,124.77,8.07227731]
[1741768957440,0.05123105,124.79,124.78,8.0155]
[1741768957640,0.05123105,124.79,124.77,0.05647731]
[1741768958148,0.05123105,124.79,124.77,8.07207731]
[1741768959449,0.05123105,124.79,124.78,8.0155]
[1741768959748,0.05123105,124.79,124.77,0.05647731]
[1741768960445,0.05123105,124.79,124.78,8.0155]
[1741768962752,3.105e-05,124.79,124.78,8.0155]
[1741768962945,3.105e-05,124.79,124.78,35.0071699]
[1741768963339,4.0584,124.87,124.78,35.0071699]
[1741768963340,12.0684,124.87,124.84,8.0112]
[1741768963750,4.0584,124.87,124.8,45.24]
[1741768964047,8.0109,124.86,124.83,8.012]
[1741768964546,0.05734509,124.86,124.83,0.05674877]
[1741768964751,16.90170261,124.86,124.83,0.05674877]
[1741768964941,0.05734509,124.86,124.83,0.05674877]
[1741768965946,8.0116,124.84,124.83,0.05674877]
[1741768966750,8.0113,124.85,124.83,0.05674877]
[1741768966948,0.05734509,124.86,124.83,0.05674877]
[1741768967452,8.0116,124.84,124.83,0.05674877]
[1741768968844,8.0113,124.85,124.83,0.05674877]
[1741768970451,8.0113,124.85,124.83,8.06894877]
[1741768970850,8.0113,124.85,124.83,0.05674877]
[1741768971050,8.0116,124.84,124.83,0.05674877]
[1741768971356,0.05734509,124.86,124.83,0.05674877]
[1741768972052,8.0116,124.84,124.83,0.05674877]
[1741768973453,0.05734509,124.86,124.83,0.05674877]
[1741768974056,8.0116,124.85,124.83,0.05674877]
[1741768974254,0.05734509,124.86,124.83,0.05674877]
[1741768974760,8.0116,124.84,124.83,0.05674877]
[1741768977661,8.0114,124.85,124.83,0.05674877]
[1741768977964,0.05734509,124.86,124.83,0.05674877]
[1741768978164,8.0116,124.84,124.83,0.05674877]
[1741768978360,0.05734509,124.86,124.83,0.05674877]
[1741768978851,8.0116,124.84,124.83,0.05674877]
[1741768980164,0.05734509,124.86,124.83,0.05674877]
[1741768980466,8.0116,124.84,124.83,0.05674877]
[1741768981761,8.0114,124.85,124.83,0.05674877]
[1741768981961,0.05734509,124.86,124.83,0.05674877]
[1741768982465,8.0116,124.84,124.83,0.05674877]
[1741768985666,29.35752748,124.84,124.73,32.2789714]
[1741768985975,26.95752748,124.82,124.73,45.1]
[1741768986772,8.0723408,124.79,124.76,8.06868009]
[1741768987065,0.0570408,124.79,124.76,8.06868009]
[1741768987270,0.0570408,124.79,124.76,0.05188009]
[1741768988665,8.0161,124.77,124.76,0.05188009]
[1741768988866,0.0570408,124.79,124.76,0.05188009]
[1741768989367,0.0570408,124.79,124.76,8.06858009]
[1741768989871,8.0722408,124.79,124.76,8.06858009]
[1741768990068,0.0570408,124.79,124.76,0.05188009]
[1741768990561,0.0570408,124.79,124.78,8.0155]
[1741768992169,4.1458,124.84,124.77,61.94125348]
[1741768992673,4.1458,124.84,124.79,8.0145]
[1741768992872,4.1458,124.84,124.77,61.94125348]
[1741768993166,4.1458,124.84,124.78,8.0151]
[1741768993371,0.0597926,124.82,124.79,0.05704136]
[1741768993867,0.00623117,124.82,124.81,16.86125348]
[1741768994066,8.0092,124.88,124.81,61.92125348]
[1741768994267,8.3205,124.9,124.83,16.86125348]
[1741768994666,12.3356,124.89,124.83,16.86125348]
[1741768995269,0.05236154,124.87,124.86,8.0103]
[1741768995766,6.154e-05,124.87,124.86,8.0103]
[1741768996874,8.0054,124.94,124.86,2.4]
[1741768997071,8.0054,124.94,124.88,16.86125348]
[1741768997276,8.2563,124.95,124.89,45.04]
[1741768998074,0.05141744,124.93,124.91,0.05260628]
[1741768998274,8.0067,124.92,124.91,0.05260628]
[1741768998770,8.05751744,124.93,124.91,0.05260628]
[1741768998972,0.05141744,124.93,124.91,0.05260628]
[1741768999675,8.0065,124.92,124.91,0.05260628]
[1741769001071,0.05141744,124.93,124.91,0.05260628]
[1741769001276,8.05741744,124.93,124.91,0.05260628]
[1741769001471,0.05141744,124.93,124.91,0.05260628]
[1741769001666,0.05141744,124.93,124.91,8.05970628]
[1741769002174,0.05141744,124.93,124.91,0.05260628]
[1741769002374,8.05751744,124.93,124.91,0.05260628]
[1741769003275,0.05141744,124.93,124.91,0.05260628]
[1741769004677,8.05761744,124.93,124.91,0.05260628]
[1741769004874,0.05141744,124.93,124.91,0.05260628]
[1741769005472,0.05141744,124.93,124.91,8.05930628]
[1741769006082,0.05141744,124.93,124.91,0.05260628]
[1741769006674,0.05141744,124.93,124.92,8.0065]
[1741769006979,0.05141744,124.93,124.92,24.86775348]
[1741769007179,1.744e-05,124.93,124.92,24.86775348]
[1741769007575,1.744e-05,124.93,124.92,28.86645348]
[1741769009371,1.744e-05,124.93,124.92,32.91655348]
[1741769009978,1.744e-05,124.93,124.92,8.0065]
[1741769010382,1.744e-05,124.93,124.92,24.86775348]
[1741769014388,1.744e-05,124.93,124.92,8.0065]
[1741769016179,1.744e-05,124.93,124.91,0.05260628]
[1741769016789,1.744e-05,124.93,124.92,8.0065]
[1741769019392,1.744e-05,124.93,124.91,8.05940628]
[1741769019894,1.744e-05,124.93,124.92,8.0065]
[1741769024192,1.744e-05,124.93,124.92,24.86775348]
[1741769024490,4.1799,125.01,124.94,16.86125348]
[1741769024686,4.1799,125.01,124.94,61.70125348]
[1741769024894,4.1799,125.01,124.94,44.84]
[1741769025394,8.0043,124.96,124.94,52.8452]
[1741769025596,4.1799,125.01,124.96,0.05687919]
[1741769025993,0.05549827,125.0,124.96,8.06027919]
[1741769026802,0.05549827,125.0,124.96,0.05687919]
[1741769027107,8.0031,124.98,124.96,0.05687919]
[1741769027906,0.05549827,125.0,124.96,0.05687919]
[1741769028110,0.05549827,125.0,124.99,8.002]
[1741769028307,0.05549827,125.0,124.98,44.82]
[1741769030705,0.05549827,125.0,124.98,52.8224]
[1741769032104,0.05549827,125.0,124.99,8.002]
[1741769039309,0.05549827,125.0,124.98,52.8224]
[1741769039510,0.05549827,125.0,124.98,44.82]
[1741769040612,0.05549827,125.0,124.98,52.8223]
[1741769041118,0.05549827,125.0,124.98,44.82]
[1741769041305,8.05719827,125.0,124.98,44.82]
[1741769042017,0.05549827,125.0,124.98,44.82]
[1741769042220,0.05549827,125.0,124.98,52.8223]
[1741769042707,8.05699827,125.0,124.98,52.8223]
[1741769043615,0.05549827,125.0,124.98,63.57573775]
[1741769043919,0.05549827,125.0,124.99,18.75543775]
[1741769044422,0.05549827,125.0,124.98,63.57573775]
[1741769044614,0.05549827,125.0,124.98,55.57343775]
[1741769044814,0.05549827,125.0,124.99,8.002]
[1741769050427,7.9558,125.05,125.04,7.9988]
[1741769050626,7.9974,125.07,125.04,7.9988]
[1741769050819,15.04663775,125.08,125.02,55.41343775]
[1741769051124,10.75343775,125.08,125.03,7.9991]
[1741769051321,10.75343775,125.08,125.04,10.75343775]
[1741769051623,0.05452213,125.07,125.05,0.05518958]
[1741769051814,7.9976,125.06,125.05,0.05518958]
[1741769057920,8.0,125.03,125.01,10.75343775]
[1741769058426,14.77433775,125.06,125.01,10.75343775]
[1741769058627,14.77433775,125.06,125.0,55.35343775]
[1741769059122,7.9999,125.03,125.02,0.05178369]
[1741769063631,10.75343775,125.03,124.97,18.75643775]
[1741769063828,14.91483775,125.03,124.97,10.75343775]
[1741769064023,14.91483775,125.03,124.97,18.75643775]
[1741769064229,10.75343775,125.01,124.97,10.75343775]
[1741769064425,10.75343775,125.01,124.96,55.31343775]
[1741769064829,8.0023,124.99,124.97,0.05051861]
[1741769065229,8.05260998,125.0,124.97,18.80675636]
[1741769067533,0.05080998,125.0,124.98,8.0026]
[1741769068235,0.05080998,125.0,124.99,8.002]
[1741769069835,0.05080998,125.0,124.98,18.75583775]
[1741769070335,0.05080998,125.0,124.98,10.75343775]
[1741769071130,0.05080998,125.0,124.98,18.75583775]
[1741769071331,0.05080998,125.0,124.98,8.0024]
[1741769071630,8.05230998,125.0,124.98,8.0024]
[1741769071832,0.05080998,125.0,124.98,8.0024]
[1741769072140,0.05080998,125.0,124.99,8.002]
[1741769074135,4.19,125.05,124.98,10.75343775]
[1741769074337,15.08613775,125.06,125.03,7.9992]
[1741769074538,23.08403775,125.06,125.03,7.9992]
[1741769074727,12.3306,125.06,125.03,7.9992]
[1741769075138,3.9922,125.07,125.03,10.75343775]
[1741769075336,0.05054692,125.06,125.04,10.75343775]
[1741769075536,0.05054692,125.06,125.05,7.9978]
[1741769075934,0.05054692,125.06,125.03,10.81244247]
[1741769076129,0.05054692,125.06,125.03,8.05840472]
[1741769077536,0.05054692,125.06,125.03,0.05900472]
[1741769078437,7.9985,125.05,125.03,0.05900472]
[1741769078634,0.05054692,125.06,125.03,0.05900472]
[1741769078943,7.9988,125.04,125.03,0.05900472]
[1741769079636,7.9986,125.05,125.03,0.05900472]
[1741769079939,10.80398467,125.06,125.03,0.05900472]
[1741769080336,7.9988,125.04,125.03,0.05900472]
[1741769081340,7.9985,125.05,125.03,0.05900472]
[1741769081635,0.05054692,125.06,125.03,0.05900472]
[1741769082336,7.9988,125.04,125.03,0.05900472]
[1741769084739,0.05054692,125.06,125.03,8.05810472]
[1741769085337,7.9985,125.05,125.03,8.05810472]
[1741769085552,0.05054692,125.06,125.04,7.9983]
[1741769085740,0.05054692,125.06,125.04,18.75173775]
[1741769086139,0.05054692,125.06,125.04,7.9983]
[1741769087238,0.05054692,125.06,125.05,7.9982]
[1741769087433,17.42716798,125.14,125.05,55.17343775]
[1741769087630,17.42716798,125.14,125.13,10.75343775]
[1741769087835,33.067899,125.16,125.13,10.75343775]
[1741769088037,33.067899,125.16,125.15,10.75343775]
[1741769088232,33.067899,125.16,125.12,44.4]
[1741769088437,33.067899,125.16,125.14,10.75343775]
[1741769088634,0.05857353,125.15,125.14,10.75343775]
[1741769089537,33.067899,125.16,125.14,10.75343775]
[1741769089744,12.45700942,125.16,125.14,18.74553775]
[1741769090146,12.45700942,125.16,125.14,10.75343775]
[1741769090346,3.9712,125.23,125.15,16.74884465]
[1741769090551,7.9875,125.22,125.16,44.38]
[1741769090747,0.05045644,125.2,125.16,44.38]
[1741769090949,7.9892,125.19,125.18,0.05239084]
[1741769092340,0.05045644,125.2,125.18,0.05239084]
[1741769094746,7.9892,125.19,125.18,0.05239084]
[1741769096447,0.05045644,125.2,125.18,0.05239084]
[1741769097446,7.9892,125.19,125.18,0.05239084]
[1741769098343,8.03945644,125.2,125.18,0.05239084]
[1741769098544,0.05045644,125.2,125.18,0.05239084]
[1741769100151,7.9892,125.19,125.18,0.05239084]
[1741769100351,0.05045644,125.2,125.18,0.05239084]
[1741769100650,8.03905644,125.2,125.18,0.05239084]
[1741769101149,0.05045644,125.2,125.18,0.05239084]
[1741769101352,8.03925644,125.2,125.18,0.05239084]
[1741769101649,0.05045644,125.2,125.18,0.05239084]
[1741769102349,7.985,125.26,125.19,16.74884465]
[1741769102549,12.1414,125.3,125.21,16.74884465]
[1741769102751,12.1414,125.3,125.22,7.987]
[1741769102950,7.9842,125.27,125.21,16.74884465]
[1741769103149,16.74884465,125.29,125.21,16.74884465]
[1741769103339,7.9855,125.25,125.21,16.74884465]
[1741769103539,0.05920918,125.26,125.24,0.05188423]
[1741769103748,0.05920918,125.26,125.2,44.26]
[1741769103948,16.74884465,125.21,125.13,16.74884465]
[1741769104144,44.26,125.2,125.13,16.74884465]
[1741769104348,52.3048,125.2,125.11,256.50884465]
[1741769104545,48.3161,125.2,125.13,16.74884465]
[1741769104746,4.0561,125.2,125.15,16.74884465]
[1741769104956,4.0561,125.2,125.13,61.00884465]
[1741769105251,0.05135791,125.18,125.15,16.79966582]
[1741769105559,8.0183,125.25,125.17,16.74884465]
[1741769105851,12.1875,125.25,125.17,16.74884465]
[1741769106153,7.9864,125.24,125.2,7.9881]
[1741769106349,12.1875,125.25,125.17,60.98884465]
[1741769106647,16.74884465,125.23,125.15,16.74884465]
[1741769106854,16.74884465,125.21,125.13,44.24]
[1741769107051,4.0721,125.2,125.11,256.50884465]
[1741769107552,44.24,125.23,125.15,16.74884465]
[1741769107749,7.9877,125.22,125.15,16.74884465]
[1741769107950,44.24,125.23,125.17,16.74884465]
[1741769108146,4.0721,125.24,125.19,16.74884465]
[1741769108351,7.084e-05,125.2,125.19,24.73804465]
[1741769108550,24.94764465,125.25,125.17,16.74884465]
[1741769108755,16.74884465,125.23,125.15,60.96884465]
[1741769108958,4.0923,125.24,125.17,16.74884465]
[1741769109160,8.1988,125.25,125.19,16.74884465]
[1741769109449,0.05074717,125.22,125.21,16.74884465]
[1741769109658,4.2656,125.28,125.21,16.74884465]
[1741769109848,4.2656,125.28,125.23,16.74884465]
[1741769110448,4.2656,125.31,125.25,16.74884465]
[1741769110959,0.05936414,125.29,125.27,0.06134573]
[1741769112160,63.40820879,125.29,125.17,16.74884465]
[1741769112350,16.74884465,125.25,125.15,16.74884465]
[1741769112550,4.1149,125.24,125.15,16.74884465]
[1741769112750,16.74884465,125.23,125.13,16.74884465]
[1741769113066,16.74884465,125.21,125.13,16.74884465]
[1741769113256,0.06078127,125.19,125.17,0.05237457]
[1741769113762,7.9907,125.18,125.17,0.05237457]
[1741769113959,3.9239,125.18,125.12,44.2]
[1741769114157,11.915,125.18,125.13,16.74884465]
[1741769114456,11.915,125.18,125.12,44.2]
[1741769114658,11.9148,125.18,125.13,7.9932]
[1741769114859,3.9239,125.18,125.12,44.2]
[1741769115057,0.05153359,125.17,125.14,0.05693263]
[1741769115658,0.05153359,125.17,125.14,8.04983263]
[1741769115861,0.05153359,125.17,125.14,0.05693263]
[1741769117861,0.05153359,125.17,125.15,7.9922]
[1741769118363,8.04293359,125.17,125.14,0.05693263]
[1741769118665,0.05153359,125.17,125.14,0.05693263]
[1741769119761,7.992,125.16,125.14,0.05693263]
[1741769120161,7.9926,125.15,125.14,0.05693263]
[1741769120366,3.9252,125.16,125.14,0.05693263]
[1741769120661,0.05153359,125.17,125.16,7.992]
[1741769121661,0.05153359,125.17,125.14,0.05693263]
[1741769121858,0.05153359,125.17,125.15,7.9923]
[1741769122056,0.05153359,125.17,125.14,0.05693263]
[1741769122256,0.05153359,125.17,125.16,7.992]
[1741769122856,0.05153359,125.17,125.14,0.05693263]
[1741769123669,0.05153359,125.17,125.16,7.992]
[1741769124873,0.05153359,125.17,125.16,52.132]
[1741769126865,0.05153359,125.17,125.16,44.14]
[1741769127268,0.05153359,125.17,125.14,0.05693263]
[1741769128363,0.05153359,125.17,125.09,117.03039168]
[1741769128568,26.81160955,125.16,125.09,117.03039168]
[1741769128769,8.2532,125.15,125.09,117.03039168]
[1741769129273,26.81160955,125.14,125.09,117.03039168]
[1741769129572,0.05874942,125.13,125.1,0.05439147]
[1741769129966,8.05314942,125.13,125.1,0.05439147]
[1741769130373,0.05874942,125.13,125.1,0.05439147]
[1741769131569,0.05874942,125.13,125.06,9.59743236]
[1741769131873,0.05874942,125.13,125.06,1.59923236]
[1741769132275,8.05294942,125.13,125.06,1.59923236]
[1741769132468,0.05874942,125.13,125.06,1.59923236]
[1741769132669,7.9952,125.11,125.06,1.59923236]
[1741769132972,26.81160955,125.14,125.08,0.05345091]
[1741769133179,7.9967,125.09,125.02,44.1]
[1741769133479,26.81160955,125.14,125.03,26.81160955]
[1741769133671,8.2532,125.15,125.07,26.81160955]
[1741769133873,3.9126,125.15,125.09,26.81160955]
[1741769134170,7.9942,125.13,125.09,34.80780955]
[1741769134475,0.06054645,125.13,125.11,0.05353814]
[1741769134871,0.06054645,125.13,125.12,7.9945]
[1741769135070,3.949,125.18,125.11,26.86514769]
[1741769135265,3.949,125.18,125.12,44.1]
[1741769135665,7.9914,125.17,125.14,7.9929]
[1741769136275,0.06077536,125.17,125.14,0.05387193]
[1741769136976,7.9923,125.16,125.14,0.05387193]
[1741769137278,0.06077536,125.17,125.14,0.05387193]
[1741769137980,0.06077536,125.17,125.14,16.81118985]
[1741769138182,0.06077536,125.17,125.16,7.992]
[1741769140580,3.9528,125.22,125.16,44.06]
[1741769140979,11.9412,125.22,125.16,44.06]
[1741769141171,11.9412,125.22,125.18,7.9903]
[1741769141678,8.04714274,125.21,125.19,0.05528749]
[1741769142083,0.05824274,125.21,125.19,0.05528749]
[1741769142378,0.05824274,125.21,125.13,70.86359795]
[1741769142579,26.80359795,125.2,125.09,28.77419795]
[1741769142779,26.80359795,125.2,125.09,70.86359795]
[1741769142981,255.74809795,125.22,125.09,70.86359795]
[1741769143379,7.9938,125.14,125.1,7.9955]
[1741769143578,0.06071008,125.17,125.09,70.84359795]
[1741769143784,0.06071008,125.17,125.09,44.04]
[1741769143985,7.9942,125.13,125.1,0.05400188]
[1741769144183,0.05909293,125.14,125.09,44.04]
[1741769144383,0.05909293,125.14,125.12,7.9945]
[1741769145888,0.05909293,125.14,125.1,0.06077554]
[1741769146687,44.09909293,125.14,125.05,44.04]
[1741769146987,7.9955,125.11,125.07,7.9974]
[1741769147588,4.2668,125.13,125.07,26.80359795]
[1741769148085,0.06038276,125.11,125.1,7.9958]
[1741769148286,7.993,125.15,125.07,26.80359795]
[1741769148479,0.05571793,125.11,125.09,0.05243809]
[1741769148684,0.05571793,125.11,125.1,7.9958]
[1741769151184,0.05571793,125.11,125.09,0.05243809]
[1741769151584,0.05571793,125.11,125.09,8.04863809]
[1741769151890,0.05571793,125.11,125.09,0.05243809]
[1741769152391,0.05571793,125.11,125.1,7.9958]
[1741769152589,0.05571793,125.11,125.09,0.05243809]
[1741769153293,0.05571793,125.11,125.02,46.0701]
[1741769153590,44.0,125.13,125.02,2.0701]
[1741769153888,26.80359795,125.1,124.99,199.63046328]
[1741769154090,8.3207,125.09,124.99,243.63046328]
[1741769154288,7.999,125.05,125.04,0.05940275]
[1741769155091,8.05585055,125.06,125.04,0.05940275]
[1741769155293,0.05715055,125.06,125.04,0.05940275]
[1741769155798,0.05715055,125.06,125.05,7.999]
[1741769160798,4.3038,125.12,125.05,26.80359795]
[1741769161095,3.9721,125.13,125.07,26.80359795]
[1741769161290,11.9664,125.13,125.1,7.9954]
[1741769161482,3.9721,125.13,125.08,43.98]
[1741769161885,0.055359,125.12,125.09,26.85465027]
[1741769162392,4.2454,125.17,125.15,7.9923]
[1741769162588,4.0685,125.2,125.15,16.75902328]
[1741769163498,0.05164809,125.19,125.17,16.75902328]
[1741769163699,87.92839747,125.23,125.17,16.75902328]
[1741769163888,133.67047113,125.24,125.21,7.9884]
[1741769164093,4.0366,125.26,125.2,16.75902328]
[1741769164292,4.0366,125.26,125.19,26.77551958]
[1741769164592,4.0366,125.26,125.2,43.96]